[Event "Titled Tuesday Blitz March 15 Early 2022"]
[White "Bluebaum, Matthias"]
[Black "Kosteniuk, Alexandra"]
[WhiteFideId "24651516"]
[BlackFideId "4128125"]
[WhiteElo "2924"]
[BlackElo "2766"]
[Result "1/2-1/2"]
[Round "10"]
[TimeControl "180+1"]
[Date "2022.03.15"]
[WhiteClock "0:00:03"]
[BlackClock "0:00:10"]

1. b3 {[%clk 0:03:00]}  e5 {[%clk 0:02:58]} 2. Bb2 {[%clk 0:03:01]}  Nc6 {[%clk 0:02:56]} 3. e3 {[%clk 0:03:02]}  g6 {[%clk 0:02:52]} 4. Nf3 {[%clk 0:03:02]}  Bg7 {[%clk 0:02:51]} 5. d4 {[%clk 0:03:02]}  exd4 {[%clk 0:02:50]} 6. Nxd4 {[%clk 0:03:03]}  Nxd4 {[%clk 0:02:48]} 7. Bxd4 {[%clk 0:03:04]}  Bxd4 {[%clk 0:02:45]} 8. Qxd4 {[%clk 0:03:05]}  Qf6 {[%clk 0:02:45]} 9. Qxf6 {[%clk 0:03:05]}  Nxf6 {[%clk 0:02:45]} 10. c4 {[%clk 0:03:06]}  d6 {[%clk 0:02:43]} 11. Nc3 {[%clk 0:03:07]}  a6 {[%clk 0:02:42]} 12. g3 {[%clk 0:03:05]}  Bd7 {[%clk 0:02:39]} 13. Bg2 {[%clk 0:03:06]}  O-O-O {[%clk 0:02:38]} 14. O-O-O {[%clk 0:03:05]}  Rhe8 {[%clk 0:02:37]} 15. h3 {[%clk 0:03:04]}  Re5 {[%clk 0:02:36]} 16. Kb2 {[%clk 0:03:04]}  h5 {[%clk 0:02:33]} 17. Rd2 {[%clk 0:03:05]}  Rde8 {[%clk 0:02:33]} 18. Rhd1 {[%clk 0:03:03]}  Bf5 {[%clk 0:02:27]} 19. Rd4 {[%clk 0:02:57]}  Ne4 {[%clk 0:02:22]} 20. Bxe4 {[%clk 0:02:34]}  Bxe4 {[%clk 0:02:22]} 21. Nxe4 {[%clk 0:02:35]}  Rxe4 {[%clk 0:02:22]} 22. Kc3 {[%clk 0:02:33]}  b6 {[%clk 0:02:17]} 23. b4 {[%clk 0:02:32]}  R4e5 {[%clk 0:02:11]} 24. Rd5 {[%clk 0:02:29]}  Kd7 {[%clk 0:02:06]} 25. a4 {[%clk 0:02:00]}  Kc6 {[%clk 0:01:56]} 26. Rxe5 {[%clk 0:01:56]}  Rxe5 {[%clk 0:01:55]} 27. Kd4 {[%clk 0:01:46]}  f5 {[%clk 0:01:41]} 28. f3 {[%clk 0:01:46]}  a5 {[%clk 0:01:40]} 29. b5+ {[%clk 0:01:46]}  Kd7 {[%clk 0:01:40]} 30. Re1 {[%clk 0:01:39]}  Re7 {[%clk 0:01:09]} 31. e4 {[%clk 0:01:32]}  fxe4 {[%clk 0:01:08]} 32. Rxe4 {[%clk 0:01:33]}  Rf7 {[%clk 0:01:08]} 33. f4 {[%clk 0:01:33]}  Rf5 {[%clk 0:01:03]} 34. g4 {[%clk 0:01:19]}  hxg4 {[%clk 0:01:01]} 35. hxg4 {[%clk 0:01:20]}  Rf7 {[%clk 0:01:00]} 36. Kd5 {[%clk 0:01:21]}  Rf6 {[%clk 0:00:53]} 37. Kd4 {[%clk 0:01:12]}  Rf7 {[%clk 0:00:53]} 38. Ke3 {[%clk 0:01:07]}  Rf8 {[%clk 0:00:37]} 39. Kf3 {[%clk 0:01:01]}  Rf7 {[%clk 0:00:36]} 40. Re1 {[%clk 0:00:57]}  Rh7 {[%clk 0:00:31]} 41. f5 {[%clk 0:00:55]}  gxf5 {[%clk 0:00:29]} 42. gxf5 {[%clk 0:00:56]}  Rh4 {[%clk 0:00:30]} 43. Kg3 {[%clk 0:00:37]}  Rxc4 {[%clk 0:00:23]} 44. f6 {[%clk 0:00:37]}  Rc5 {[%clk 0:00:20]} 45. Kg4 {[%clk 0:00:38]}  Rc2 {[%clk 0:00:17]} 46. Re7+ {[%clk 0:00:14]}  Kd8 {[%clk 0:00:16]} 47. Kf5 {[%clk 0:00:15]}  Rf2+ {[%clk 0:00:16]} 48. Ke6 {[%clk 0:00:15]}  Re2+ {[%clk 0:00:15]} 49. Kf7 {[%clk 0:00:16]}  Rf2 {[%clk 0:00:15]} 50. Re1 {[%clk 0:00:15]}  Kd7 {[%clk 0:00:14]} 51. Kg7 {[%clk 0:00:15]}  Rg2+ {[%clk 0:00:13]} 52. Kf8 {[%clk 0:00:15]}  d5 {[%clk 0:00:13]} 53. Rf1 {[%clk 0:00:08]}  Rg4 {[%clk 0:00:10]} 54. f7 {[%clk 0:00:08]}  d4 {[%clk 0:00:10]} 55. Rd1 {[%clk 0:00:06]}  Kd8 {[%clk 0:00:08]} 56. Rd2 {[%clk 0:00:04]}  Kd7 {[%clk 0:00:08]} 57. Rd1 {[%clk 0:00:05]}  Kd8 {[%clk 0:00:09]} 58. Rh1 {[%clk 0:00:05]}  Kd7 {[%clk 0:00:08]} 59. Rh5 {[%clk 0:00:06]}  Kd6 {[%clk 0:00:02]} 60. Ke8 {[%clk 0:00:06]}  Re4+ {[%clk 0:00:03]} 61. Kd8 {[%clk 0:00:06]}  Rf4 {[%clk 0:00:03]} 62. Rh6+ {[%clk 0:00:06]}  Kc5 {[%clk 0:00:03]} 63. Ke7 {[%clk 0:00:07]}  d3 {[%clk 0:00:04]} 64. Rh3 {[%clk 0:00:06]}  Kc4 {[%clk 0:00:04]} 65. Rh4 {[%clk 0:00:05]}  Rxh4 {[%clk 0:00:04]} 66. f8=Q {[%clk 0:00:06]}  Rd4 {[%clk 0:00:04]} 67. Qf1 {[%clk 0:00:06]}  Kc3 {[%clk 0:00:04]} 68. Qc1+ {[%clk 0:00:06]}  Kb3 {[%clk 0:00:04]} 69. Qb1+ {[%clk 0:00:05]}  Kc4 {[%clk 0:00:04]} 70. Qa2+ {[%clk 0:00:06]}  Kb4 {[%clk 0:00:04]} 71. Qb2+ {[%clk 0:00:06]}  Kc4 {[%clk 0:00:05]} 72. Qc1+ {[%clk 0:00:06]}  Kb4 {[%clk 0:00:05]} 73. Qb1+ {[%clk 0:00:05]}  Kc4 {[%clk 0:00:06]} 74. Ke6 {[%clk 0:00:05]}  d2 {[%clk 0:00:06]} 75. Qc2+ {[%clk 0:00:05]}  Kb4 {[%clk 0:00:06]} 76. Qb2+ {[%clk 0:00:06]}  Kc4 {[%clk 0:00:07]} 77. Qc2+ {[%clk 0:00:07]}  Kb4 {[%clk 0:00:07]} 78. Qd1 {[%clk 0:00:07]}  Kc3 {[%clk 0:00:07]} 79. Ke5 {[%clk 0:00:08]}  Rd6 {[%clk 0:00:06]} 80. Ke4 {[%clk 0:00:07]}  Kb4 {[%clk 0:00:07]} 81. Ke3 {[%clk 0:00:07]}  Kc3 {[%clk 0:00:07]} 82. Ke4 {[%clk 0:00:05]}  Kb4 {[%clk 0:00:07]} 83. Ke5 {[%clk 0:00:06]}  Kc3 {[%clk 0:00:08]} 84. Qf3+ {[%clk 0:00:05]}  Kc2 {[%clk 0:00:08]} 85. Qf5+ {[%clk 0:00:05]}  Kc1 {[%clk 0:00:08]} 86. Qf4 {[%clk 0:00:04]}  Kb1 {[%clk 0:00:08]} 87. Qe4+ {[%clk 0:00:02]}  Kb2 {[%clk 0:00:09]} 88. Qg2 {[%clk 0:00:02]}  Kc1 {[%clk 0:00:09]} 89. Qg5 {[%clk 0:00:02]}  Kc2 {[%clk 0:00:10]} 90. Qf5+ {[%clk 0:00:02]}  Kb3 {[%clk 0:00:10]} 91. Qf3+ {[%clk 0:00:03]}  Kc2 {[%clk 0:00:10]} 92. Qf5+ {[%clk 0:00:03]} 1/2-1/2


[Site "https://www.chess.com"]

[Event "Titled Tuesday Blitz March 15 Early 2022"]
[White "Bok, Benjamin"]
[Black "Hammer, Jon Ludvig"]
[WhiteFideId "1017063"]
[BlackFideId "1503707"]
[WhiteElo "2939"]
[BlackElo "2838"]
[Result "1-0"]
[Round "10"]
[TimeControl "180+1"]
[Date "2022.03.15"]
[WhiteClock "0:00:12"]
[BlackClock "0:00:02"]

1. c4 {[%clk 0:03:00]}  e6 {[%clk 0:02:59]} 2. g3 {[%clk 0:02:56]}  d5 {[%clk 0:02:59]} 3. Bg2 {[%clk 0:02:57]}  d4 {[%clk 0:02:47]} 4. Nf3 {[%clk 0:02:56]}  Nc6 {[%clk 0:02:46]} 5. O-O {[%clk 0:02:55]}  Bc5 {[%clk 0:02:45]} 6. d3 {[%clk 0:02:51]}  Nge7 {[%clk 0:02:42]} 7. Nbd2 {[%clk 0:02:00]}  Nf5 {[%clk 0:02:35]} 8. Nb3 {[%clk 0:01:51]}  Be7 {[%clk 0:02:35]} 9. e4 {[%clk 0:01:40]}  dxe3 {[%clk 0:02:36]} 10. fxe3 {[%clk 0:01:40]}  a5 {[%clk 0:02:36]} 11. e4 {[%clk 0:01:20]}  Nfd4 {[%clk 0:02:24]} 12. Nfxd4 {[%clk 0:01:02]}  Nxd4 {[%clk 0:02:25]} 13. Be3 {[%clk 0:01:02]}  Nxb3 {[%clk 0:02:03]} 14. axb3 {[%clk 0:01:03]}  e5 {[%clk 0:02:03]} 15. Qh5 {[%clk 0:00:57]}  O-O {[%clk 0:02:02]} 16. Qxe5 {[%clk 0:00:52]}  Qxd3 {[%clk 0:01:51]} 17. Bd4 {[%clk 0:00:40]}  f6 {[%clk 0:01:51]} 18. Qd5+ {[%clk 0:00:38]}  Kh8 {[%clk 0:01:31]} 19. e5 {[%clk 0:00:20]}  c6 {[%clk 0:00:50]} 20. Qe4 {[%clk 0:00:18]}  Qxe4 {[%clk 0:00:49]} 21. Bxe4 {[%clk 0:00:19]}  f5 {[%clk 0:00:50]} 22. Bg2 {[%clk 0:00:19]}  Be6 {[%clk 0:00:49]} 23. Bc3 {[%clk 0:00:19]}  Bb4 {[%clk 0:00:48]} 24. Bxb4 {[%clk 0:00:18]}  axb4 {[%clk 0:00:48]} 25. Rfd1 {[%clk 0:00:17]}  Kg8 {[%clk 0:00:48]} 26. Kf2 {[%clk 0:00:15]}  Kf7 {[%clk 0:00:49]} 27. Ke3 {[%clk 0:00:15]}  Ke7 {[%clk 0:00:35]} 28. h4 {[%clk 0:00:15]}  h6 {[%clk 0:00:26]} 29. Bf3 {[%clk 0:00:15]}  g5 {[%clk 0:00:26]} 30. hxg5 {[%clk 0:00:16]}  hxg5 {[%clk 0:00:27]} 31. Rxa8 {[%clk 0:00:15]}  Rxa8 {[%clk 0:00:26]} 32. Rh1 {[%clk 0:00:16]}  Bg8 {[%clk 0:00:12]} 33. Rh5 {[%clk 0:00:15]}  Ra2 {[%clk 0:00:11]} 34. Rxg5 {[%clk 0:00:15]}  Bf7 {[%clk 0:00:11]} 35. Rg7 {[%clk 0:00:11]}  Kf8 {[%clk 0:00:10]} 36. Rg5 {[%clk 0:00:11]}  Rxb2 {[%clk 0:00:10]} 37. Rxf5 {[%clk 0:00:12]}  Rxb3+ {[%clk 0:00:10]} 38. Kf4 {[%clk 0:00:12]}  Ke7 {[%clk 0:00:10]} 39. Rg5 {[%clk 0:00:13]}  Bxc4 {[%clk 0:00:10]} 40. Rg7+ {[%clk 0:00:12]}  Kf8 {[%clk 0:00:09]} 41. Rxb7 {[%clk 0:00:12]}  c5 {[%clk 0:00:04]} 42. Bg4 {[%clk 0:00:11]}  Rc3 {[%clk 0:00:03]} 43. e6 {[%clk 0:00:12]}  b3 {[%clk 0:00:02]} 44. e7+ {[%clk 0:00:12]} 1-0


[Site "https://www.chess.com"]

[Event "Titled Tuesday Blitz March 15 Early 2022"]
[White "Butti, Enrique"]
[Black "Flis, Pawel"]
[WhiteFideId "3700470"]
[BlackFideId "1112864"]
[WhiteElo "2080"]
[BlackElo "1735"]
[Result "1-0"]
[Round "10"]
[TimeControl "180+1"]
[Date "2022.03.15"]
[WhiteClock "0:01:24"]
[BlackClock "0:00:58"]

1. d4 {[%clk 0:02:58]}  Nf6 {[%clk 0:02:58]} 2. Nf3 {[%clk 0:02:57]}  d6 {[%clk 0:02:56]} 3. c4 {[%clk 0:02:56]}  g6 {[%clk 0:02:54]} 4. Nc3 {[%clk 0:02:55]}  Bg7 {[%clk 0:02:54]} 5. Bg5 {[%clk 0:02:54]}  O-O {[%clk 0:02:54]} 6. e3 {[%clk 0:02:54]}  c5 {[%clk 0:02:53]} 7. Be2 {[%clk 0:02:51]}  cxd4 {[%clk 0:02:53]} 8. exd4 {[%clk 0:02:48]}  d5 {[%clk 0:02:53]} 9. c5 {[%clk 0:02:47]}  Nc6 {[%clk 0:02:51]} 10. O-O {[%clk 0:02:45]}  Ne4 {[%clk 0:02:50]} 11. Bh4 {[%clk 0:02:37]}  Nxc3 {[%clk 0:02:39]} 12. bxc3 {[%clk 0:02:36]}  Bg4 {[%clk 0:02:38]} 13. Rb1 {[%clk 0:02:29]}  Qd7 {[%clk 0:02:31]} 14. Re1 {[%clk 0:02:27]}  Bxf3 {[%clk 0:02:27]} 15. Bxf3 {[%clk 0:02:27]}  Rfe8 {[%clk 0:02:27]} 16. Qb3 {[%clk 0:02:18]}  Na5 {[%clk 0:02:08]} 17. Qxd5 {[%clk 0:02:17]}  Qxd5 {[%clk 0:02:03]} 18. Bxd5 {[%clk 0:02:16]}  Nc6 {[%clk 0:01:58]} 19. Bxc6 {[%clk 0:02:14]}  bxc6 {[%clk 0:01:57]} 20. Bxe7 {[%clk 0:02:11]}  Rab8 {[%clk 0:01:50]} 21. Bd6 {[%clk 0:02:09]}  Rxb1 {[%clk 0:01:46]} 22. Rxb1 {[%clk 0:02:08]}  Bf8 {[%clk 0:01:46]} 23. Kf1 {[%clk 0:02:05]}  Bxd6 {[%clk 0:01:42]} 24. cxd6 {[%clk 0:02:04]}  Rd8 {[%clk 0:01:43]} 25. Rb7 {[%clk 0:02:03]}  Rxd6 {[%clk 0:01:41]} 26. Rxa7 {[%clk 0:02:01]}  c5 {[%clk 0:01:41]} 27. dxc5 {[%clk 0:01:56]}  Rc6 {[%clk 0:01:40]} 28. Ra5 {[%clk 0:01:55]}  Kf8 {[%clk 0:01:40]} 29. Ke2 {[%clk 0:01:55]}  Ke7 {[%clk 0:01:40]} 30. Kd3 {[%clk 0:01:54]}  Ke6 {[%clk 0:01:39]} 31. Kc4 {[%clk 0:01:54]}  Ke5 {[%clk 0:01:38]} 32. Rb5 {[%clk 0:01:53]}  Ra6 {[%clk 0:01:29]} 33. Rb2 {[%clk 0:01:52]}  Rc6 {[%clk 0:01:21]} 34. Kb5 {[%clk 0:01:52]}  Rc8 {[%clk 0:01:19]} 35. Re2+ {[%clk 0:01:49]}  Kd5 {[%clk 0:01:18]} 36. Rd2+ {[%clk 0:01:48]}  Ke5 {[%clk 0:01:18]} 37. c6 {[%clk 0:01:48]}  f5 {[%clk 0:01:05]} 38. Kb6 {[%clk 0:01:46]}  g5 {[%clk 0:01:05]} 39. c7 {[%clk 0:01:45]}  Re8 {[%clk 0:01:03]} 40. Rd8 {[%clk 0:01:42]}  Re6+ {[%clk 0:01:02]} 41. Kb7 {[%clk 0:01:41]}  Re7 {[%clk 0:01:02]} 42. Kb8 {[%clk 0:01:40]}  Rxc7 {[%clk 0:00:59]} 43. Kxc7 {[%clk 0:01:40]}  f4 {[%clk 0:01:00]} 44. a4 {[%clk 0:01:38]}  h5 {[%clk 0:01:00]} 45. a5 {[%clk 0:01:38]}  g4 {[%clk 0:01:00]} 46. f3 {[%clk 0:01:37]}  h4 {[%clk 0:00:57]} 47. fxg4 {[%clk 0:01:36]}  h3 {[%clk 0:00:57]} 48. gxh3 {[%clk 0:01:36]}  f3 {[%clk 0:00:58]} 49. Rf8 {[%clk 0:01:35]}  f2 {[%clk 0:00:58]} 50. Rxf2 {[%clk 0:01:34]}  Ke4 {[%clk 0:00:58]} 51. a6 {[%clk 0:01:33]}  Kd3 {[%clk 0:00:59]} 52. a7 {[%clk 0:01:32]}  Kxc3 {[%clk 0:01:00]} 53. a8=Q {[%clk 0:01:30]}  Kc4 {[%clk 0:01:01]} 54. Qc6+ {[%clk 0:01:29]}  Kd4 {[%clk 0:01:00]} 55. Qd6+ {[%clk 0:01:28]}  Ke3 {[%clk 0:01:00]} 56. Qd2+ {[%clk 0:01:26]}  Ke4 {[%clk 0:00:59]} 57. Rf4+ {[%clk 0:01:25]}  Ke5 {[%clk 0:00:59]} 58. Qd4+ {[%clk 0:01:25]}  Ke6 {[%clk 0:00:59]} 59. Rf6+ {[%clk 0:01:25]}  Ke7 {[%clk 0:00:59]} 60. Qd6+ {[%clk 0:01:24]}  Ke8 {[%clk 0:00:58]} 61. Rf8# {[%clk 0:01:24]} 1-0


[Site "https://www.chess.com"]

[Event "Titled Tuesday Blitz March 15 Early 2022"]
[White "Chernomordik, Pavel"]
[Black "Bryakin, Mikhail"]
[WhiteFideId "2804530"]
[BlackFideId "4165314"]
[WhiteElo "2249"]
[BlackElo "2417"]
[Result "0-1"]
[Round "10"]
[TimeControl "180+1"]
[Date "2022.03.15"]
[WhiteClock "0:00:10"]
[BlackClock "0:01:16"]

1. e4 {[%clk 0:03:00]}  e5 {[%clk 0:02:56]} 2. Nf3 {[%clk 0:02:59]}  Nc6 {[%clk 0:02:56]} 3. Bb5 {[%clk 0:02:58]}  f5 {[%clk 0:02:57]} 4. d4 {[%clk 0:02:53]}  fxe4 {[%clk 0:02:55]} 5. Bxc6 {[%clk 0:02:52]}  bxc6 {[%clk 0:02:53]} 6. Nxe5 {[%clk 0:02:51]}  Nf6 {[%clk 0:02:54]} 7. O-O {[%clk 0:02:49]}  Bb7 {[%clk 0:02:45]} 8. Nc3 {[%clk 0:02:46]}  d6 {[%clk 0:02:45]} 9. Ng4 {[%clk 0:02:42]}  d5 {[%clk 0:02:45]} 10. Bg5 {[%clk 0:02:39]}  Be7 {[%clk 0:02:46]} 11. Bxf6 {[%clk 0:02:32]}  gxf6 {[%clk 0:02:46]} 12. Nh6 {[%clk 0:02:29]}  Qd6 {[%clk 0:02:41]} 13. Qh5+ {[%clk 0:02:26]}  Kd7 {[%clk 0:02:42]} 14. Nf7 {[%clk 0:02:23]}  Qe6 {[%clk 0:02:41]} 15. Nxh8 {[%clk 0:02:21]}  Rxh8 {[%clk 0:02:42]} 16. Rae1 {[%clk 0:02:11]}  f5 {[%clk 0:02:41]} 17. f3 {[%clk 0:02:09]}  Bf6 {[%clk 0:02:35]} 18. Rd1 {[%clk 0:02:04]}  Ba6 {[%clk 0:02:32]} 19. Rfe1 {[%clk 0:02:04]}  Kc8 {[%clk 0:02:31]} 20. Na4 {[%clk 0:02:01]}  Be7 {[%clk 0:02:27]} 21. b3 {[%clk 0:01:53]}  Bb5 {[%clk 0:02:03]} 22. Nc5 {[%clk 0:01:42]}  Bxc5 {[%clk 0:01:58]} 23. dxc5 {[%clk 0:01:42]}  h6 {[%clk 0:01:57]} 24. Qh4 {[%clk 0:01:26]}  Rg8 {[%clk 0:01:46]} 25. Kh1 {[%clk 0:01:24]}  Qg6 {[%clk 0:01:40]} 26. Rg1 {[%clk 0:01:22]}  Be2 {[%clk 0:01:23]} 27. Qe1 {[%clk 0:01:07]}  Bxd1 {[%clk 0:01:20]} 28. Qxd1 {[%clk 0:01:06]}  Qf6 {[%clk 0:01:19]} 29. Qd2 {[%clk 0:01:02]}  f4 {[%clk 0:01:18]} 30. fxe4 {[%clk 0:01:00]}  dxe4 {[%clk 0:01:18]} 31. Rf1 {[%clk 0:00:58]}  e3 {[%clk 0:01:19]} 32. Qb4 {[%clk 0:00:45]}  Qe5 {[%clk 0:01:16]} 33. h3 {[%clk 0:00:36]}  e2 {[%clk 0:01:16]} 34. Rg1 {[%clk 0:00:31]}  f3 {[%clk 0:01:16]} 35. Qc4 {[%clk 0:00:10]}  fxg2+ {[%clk 0:01:15]} 36. Rxg2 {[%clk 0:00:10]}  e1=Q+ {[%clk 0:01:16]} 0-1


[Site "https://www.chess.com"]

[Event "Titled Tuesday Blitz March 15 Early 2022"]
[White "Cramling Bellon, Anna"]
[Black "Thomas, Anysia"]
[WhiteFideId "32009232"]
[BlackFideId "670472"]
[WhiteElo "1905"]
[BlackElo "2002"]
[Result "0-1"]
[Round "10"]
[TimeControl "180+1"]
[Date "2022.03.15"]
[WhiteClock "0:00:01"]
[BlackClock "0:00:11"]

1. d4 {[%clk 0:02:56]}  Nf6 {[%clk 0:03:00]} 2. c4 {[%clk 0:02:53]}  g6 {[%clk 0:03:00]} 3. Nc3 {[%clk 0:02:53]}  d5 {[%clk 0:03:01]} 4. cxd5 {[%clk 0:02:52]}  Nxd5 {[%clk 0:03:02]} 5. e4 {[%clk 0:02:52]}  Nxc3 {[%clk 0:03:02]} 6. bxc3 {[%clk 0:02:52]}  Bg7 {[%clk 0:03:03]} 7. Qa4+ {[%clk 0:02:51]}  Nd7 {[%clk 0:03:01]} 8. Nf3 {[%clk 0:02:50]}  O-O {[%clk 0:03:00]} 9. Bg5 {[%clk 0:02:49]}  c5 {[%clk 0:02:57]} 10. Qa3 {[%clk 0:02:47]}  Qc7 {[%clk 0:02:53]} 11. Bd3 {[%clk 0:02:37]}  b6 {[%clk 0:02:44]} 12. O-O {[%clk 0:02:35]}  Bb7 {[%clk 0:02:40]} 13. d5 {[%clk 0:02:28]}  Ne5 {[%clk 0:02:19]} 14. Nxe5 {[%clk 0:02:24]}  Qxe5 {[%clk 0:02:19]} 15. Bd2 {[%clk 0:02:09]}  c4 {[%clk 0:02:01]} 16. f4 {[%clk 0:01:54]}  Qc7 {[%clk 0:02:00]} 17. Be2 {[%clk 0:01:45]}  Rad8 {[%clk 0:01:43]} 18. Be3 {[%clk 0:01:36]}  e6 {[%clk 0:01:21]} 19. dxe6 {[%clk 0:01:33]}  fxe6 {[%clk 0:01:13]} 20. Bf3 {[%clk 0:00:49]}  Rd3 {[%clk 0:01:08]} 21. Rae1 {[%clk 0:00:35]}  Bxc3 {[%clk 0:01:06]} 22. Bg4 {[%clk 0:00:18]}  Qc6 {[%clk 0:00:43]} 23. Qc1 {[%clk 0:00:06]}  Rfd8 {[%clk 0:00:22]} 24. f5 {[%clk 0:00:05]}  exf5 {[%clk 0:00:20]} 25. Be2 {[%clk 0:00:02]}  Rxe3 {[%clk 0:00:18]} 26. Qxe3 {[%clk 0:00:02]}  Bxe1 {[%clk 0:00:17]} 27. Rxe1 {[%clk 0:00:02]}  Qxe4 {[%clk 0:00:17]} 28. Qxe4 {[%clk 0:00:02]}  Bxe4 {[%clk 0:00:17]} 29. Bxc4+ {[%clk 0:00:03]}  Kg7 {[%clk 0:00:18]} 30. Rc1 {[%clk 0:00:03]}  Rd2 {[%clk 0:00:17]} 31. Bf1 {[%clk 0:00:03]}  Rxa2 {[%clk 0:00:16]} 32. h3 {[%clk 0:00:03]}  Kh6 {[%clk 0:00:17]} 33. Rc7 {[%clk 0:00:03]}  a5 {[%clk 0:00:15]} 34. Rc8 {[%clk 0:00:02]}  a4 {[%clk 0:00:15]} 35. g4 {[%clk 0:00:02]}  fxg4 {[%clk 0:00:14]} 36. hxg4 {[%clk 0:00:02]}  Kg5 {[%clk 0:00:14]} 37. Rb8 {[%clk 0:00:02]}  a3 {[%clk 0:00:11]} 38. Rxb6 {[%clk 0:00:02]}  Rb2 {[%clk 0:00:11]} 39. Ra6 {[%clk 0:00:01]}  a2 {[%clk 0:00:11]} 0-1


[Site "https://www.chess.com"]

[Event "Titled Tuesday Blitz March 15 Early 2022"]
[White "Donchenko, Alexander"]
[Black "Demchenko, Anton"]
[WhiteFideId "24603295"]
[BlackFideId "4160258"]
[WhiteElo "2777"]
[BlackElo "2859"]
[Result "0-1"]
[Round "10"]
[TimeControl "180+1"]
[Date "2022.03.15"]
[WhiteClock "0:00:04"]
[BlackClock "0:00:19"]

1. d4 {[%clk 0:03:00]}  Nf6 {[%clk 0:03:00]} 2. c4 {[%clk 0:03:01]}  d6 {[%clk 0:03:01]} 3. Nf3 {[%clk 0:03:01]}  Nbd7 {[%clk 0:03:01]} 4. g3 {[%clk 0:03:01]}  g6 {[%clk 0:03:01]} 5. Bg2 {[%clk 0:03:01]}  Bg7 {[%clk 0:03:02]} 6. O-O {[%clk 0:03:02]}  O-O {[%clk 0:03:02]} 7. Nc3 {[%clk 0:03:03]}  e5 {[%clk 0:03:03]} 8. e4 {[%clk 0:03:03]}  exd4 {[%clk 0:03:04]} 9. Nxd4 {[%clk 0:03:03]}  Nc5 {[%clk 0:03:05]} 10. Re1 {[%clk 0:03:01]}  Re8 {[%clk 0:03:05]} 11. h3 {[%clk 0:03:00]}  a5 {[%clk 0:03:05]} 12. Qc2 {[%clk 0:02:48]}  a4 {[%clk 0:03:03]} 13. Be3 {[%clk 0:02:47]}  c6 {[%clk 0:03:03]} 14. Rad1 {[%clk 0:02:46]}  Nfd7 {[%clk 0:03:04]} 15. f4 {[%clk 0:02:42]}  Qa5 {[%clk 0:03:04]} 16. Bf2 {[%clk 0:02:34]}  Nf8 {[%clk 0:03:03]} 17. a3 {[%clk 0:02:30]}  Be6 {[%clk 0:02:16]} 18. Nxe6 {[%clk 0:02:23]}  Rxe6 {[%clk 0:02:17]} 19. f5 {[%clk 0:02:17]}  Ree8 {[%clk 0:02:07]} 20. Rxd6 {[%clk 0:02:16]}  Be5 {[%clk 0:01:58]} 21. Rdd1 {[%clk 0:02:13]}  Red8 {[%clk 0:01:56]} 22. Rxd8 {[%clk 0:01:58]}  Rxd8 {[%clk 0:01:54]} 23. Rd1 {[%clk 0:01:58]}  Nfd7 {[%clk 0:01:48]} 24. Ne2 {[%clk 0:01:41]}  Re8 {[%clk 0:01:46]} 25. Nd4 {[%clk 0:01:34]}  Qc7 {[%clk 0:01:44]} 26. g4 {[%clk 0:01:06]}  Bg3 {[%clk 0:01:43]} 27. Re1 {[%clk 0:00:49]}  Bxf2+ {[%clk 0:01:41]} 28. Kxf2 {[%clk 0:00:50]}  Qh2 {[%clk 0:01:38]} 29. Nf3 {[%clk 0:00:47]}  Qf4 {[%clk 0:01:37]} 30. Kg1 {[%clk 0:00:44]}  Rxe4 {[%clk 0:01:34]} 31. Rxe4 {[%clk 0:00:44]}  Nxe4 {[%clk 0:01:23]} 32. fxg6 {[%clk 0:00:44]}  hxg6 {[%clk 0:01:22]} 33. Qxa4 {[%clk 0:00:44]}  Ndc5 {[%clk 0:01:21]} 34. Qd1 {[%clk 0:00:40]}  Qe3+ {[%clk 0:01:02]} 35. Kh2 {[%clk 0:00:40]}  Nd3 {[%clk 0:01:03]} 36. b4 {[%clk 0:00:34]}  Qf4+ {[%clk 0:00:48]} 37. Kg1 {[%clk 0:00:34]}  Nef2 {[%clk 0:00:45]} 38. Qd2 {[%clk 0:00:28]}  Qg3 {[%clk 0:00:46]} 39. Kf1 {[%clk 0:00:25]}  Nxh3 {[%clk 0:00:46]} 40. Qe3 {[%clk 0:00:06]}  Nhf4 {[%clk 0:00:46]} 41. Bh1 {[%clk 0:00:06]}  Qh3+ {[%clk 0:00:45]} 42. Kg1 {[%clk 0:00:05]}  Qxg4+ {[%clk 0:00:46]} 43. Kf1 {[%clk 0:00:05]}  Qh3+ {[%clk 0:00:46]} 44. Kg1 {[%clk 0:00:06]}  g5 {[%clk 0:00:43]} 45. Qe8+ {[%clk 0:00:06]}  Kg7 {[%clk 0:00:44]} 46. Qe3 {[%clk 0:00:06]}  Qg3+ {[%clk 0:00:23]} 47. Kf1 {[%clk 0:00:07]}  Qh3+ {[%clk 0:00:17]} 48. Kg1 {[%clk 0:00:07]}  g4 {[%clk 0:00:17]} 49. Qd4+ {[%clk 0:00:07]}  f6 {[%clk 0:00:18]} 50. Qd7+ {[%clk 0:00:06]}  Kh6 {[%clk 0:00:18]} 51. Qd8 {[%clk 0:00:03]}  Qg3+ {[%clk 0:00:19]} 52. Kf1 {[%clk 0:00:04]}  Qf2# {[%clk 0:00:19]} 0-1


[Site "https://www.chess.com"]